[Event "Stay Safe Play From Home 324"]
[Site "Emanuel Lasker Arena"]
[Date "2020.07.22"]
[Round "6"]
[White "Dukic"]
[Black "SelamiSahin"]
[Result "0-1"]
[WhiteElo "1855"]
[BlackElo "1898"]
[Annotator "NA RC"]
[PlyCount "62"]
[EventDate "2020.07.22"]
[EventType "swiss (blitz)"]
[TimeControl "300"]

1. c4 {[%emt 0:00:04]} b6 {[%emt 0:00:02]} 2. Nc3 {[%emt 0:00:01]} Bb7 {[%emt 0:00:02]} 3. d4 {[%emt 0:00:02]} c5 {[%emt 0:00:04]} 4. d5 {[%emt 0:00:01]} d6 {[%emt 0:00:01]} 5. e4 {[%emt 0:00:01]} Nd7 {[%emt 0:00:14]} 6. f4 {[%emt 0:00:02]} g6 {[%emt 0:00:04]} 7. Nf3 {[%emt 0:00:01]} Bg7 {[%emt 0:00:01]} 8. Qc2 {[%emt 0:00:01]} h5 {[%emt 0:00:09]} 9. Be2 {[%emt 0:00:01]} Nh6 {[%emt 0:00:04]} 10. O-O {[%emt 0:00:01]} O-O {[%emt 0:00:06]} 11. b3 {[%emt 0:00:03]} e6 {[%emt 0:00:03]} 12. Bb2 {[%emt 0:00:12]} Qe7 {[%emt 0:00:08]} 13. Rae1 {[%emt 0:00:09]} e5 {[%emt 0:00:07]} 14. f5 {[%emt 0:00:17]} Bf6 {[%emt 0:00:03]} 15. h3 {[%emt 0:00:05]} Kg7 {[%emt 0:00:04]} 16. Bc1 {[%emt 0:00:07]} a6 {[%emt 0:00:03]} 17. Bd3 {[%emt 0:00:04]} Rh8 {[%emt 0:00:05]} 18. Qf2 {[%emt 0:00:11]} g5 {[%emt 0:00:06]} 19. Nxg5 {[%emt 0:00:28]} Bxg5 {[%emt 0:00:03]} 20. Qg3 {[%emt 0:00:01]} Ng4 {[%emt 0:00:12]} 21. hxg4 {[%emt 0:00:05]} Bxc1 {[%emt 0:00:01]} 22. Rxc1 {[%emt 0:00:05]} Qg5 {[%emt 0:00:01]} 23. Be2 {[%emt 0:00:13]} Nf6 {[%emt 0:00:05]} 24. Rce1 {[%emt 0:00:15]} hxg4 {[%emt 0:00:03]} 25. Nd1 {[%emt 0:00:06]} Rh4 {[%emt 0:00:11]} 26. Bd3 {[%emt 0:00:12]} Rah8 {[%emt 0:00:02]} 27. Kf2 {[%emt 0:00:03]} Nh5 {[%emt 0:00:08]} 28. Qe3 {[%emt 0:00:03]} Nf4 {[%emt 0:00:22]} 29. Rg1 {[%emt 0:00:17]} Rh2 {[%emt 0:00:06]} 30. Bf1 {[%emt 0:00:15]} R8h3 {[%emt 0:00:26]} 31. Qd2 {[%emt 0:00:17]} Rf3# {[%emt 0:00:01] (Lag: Av=0.48s, max=0.9s)} 0-1